bitfinex/quotes_BTCUSD_20251231
["timestamp","ask_amount","ask_price","bid_price","bid_amount"]
[1767170810301,0.01132,88452.0,88441.0,0.06256]
[1767170810682,0.01132,88452.0,88441.0,0.07386697]
[1767170811001,0.01132,88452.0,88441.0,0.06256]
[1767170811639,0.01132,88452.0,88443.0,0.06256]
[1767170812168,0.0001133,88455.0,88446.0,0.07386633]
[1767170812561,0.0001133,88455.0,88447.0,0.06256]
[1767170812787,0.0001133,88455.0,88448.0,0.06256]
[1767170812902,0.0001133,88455.0,88449.0,0.07386595]
[1767170813309,0.0001133,88455.0,88451.0,0.06256]
[1767170814175,0.0001133,88455.0,88446.0,0.06256]
[1767170814576,0.0001133,88455.0,88443.0,0.02266671]
[1767170814709,0.000549,88446.0,88443.0,0.01136]
[1767170815267,0.0001133,88455.0,88443.0,0.08522671]
[1767170816331,0.0001133,88455.0,88441.0,0.01136]
[1767170816332,0.000549,88443.0,88441.0,0.01136]
[1767170816694,0.06072,88447.0,88441.0,0.01136]
[1767170819170,0.06072,88454.0,88441.0,0.01136]
[1767170819382,0.06072,88454.0,88441.0,0.02266697]
[1767170819599,0.0001133,88455.0,88442.0,0.06256]
[1767170820619,0.0001133,88455.0,88442.0,0.07386684]
[1767170821141,0.0001133,88455.0,88443.0,0.01130671]
[1767170821299,0.0001133,88455.0,88442.0,0.07386684]
[1767170822203,0.0001133,88455.0,88444.0,0.01130658]
[1767170822409,0.0001133,88455.0,88443.0,0.01130671]
[1767170822606,0.0001133,88455.0,88442.0,0.07386684]
[1767170822811,0.0001133,88455.0,88443.0,0.01130671]
[1767170826616,0.0001133,88455.0,88442.0,0.07386684]
[1767170826811,0.0001133,88455.0,88443.0,0.01130671]
[1767170827012,0.0001133,88455.0,88446.0,0.06255]
[1767170827268,0.0001133,88455.0,88448.0,0.06255]
[1767170827626,0.0001133,88455.0,88448.0,0.07385607]
[1767170828488,3.3e-06,88455.0,88451.0,0.07385569]
[1767170828848,0.0116733,88462.0,88451.0,0.07385569]
[1767170828849,0.00998594,88462.0,88452.0,0.01130556]
[1767170829089,0.00998594,88462.0,88451.0,0.07385569]
[1767170829294,0.00998594,88462.0,88452.0,0.07385556]
[1767170829451,0.00998594,88462.0,88454.0,0.06255]
[1767170829656,0.00998594,88462.0,88452.0,0.01130556]
[1767170830780,0.00998594,88462.0,88453.0,0.01130543]
[1767170831504,0.00998594,88462.0,88452.0,0.01130556]
[1767170831892,0.00998594,88462.0,88453.0,0.01130543]
[1767170832294,0.00998594,88462.0,88450.0,0.22219875]
[1767170832496,0.000549,88453.0,88451.0,0.06255]
[1767170832754,0.000549,88453.0,88451.0,0.062]
[1767170832968,0.00998594,88462.0,88451.0,0.062]
[1767170835620,0.00998594,88462.0,88451.0,0.07330569]
[1767170835911,0.00998594,88462.0,88451.0,0.062]
[1767170849862,0.00998594,88462.0,88451.0,0.07330569]
[1767170850651,0.00998594,88462.0,88451.0,0.062]
[1767170852861,0.00998594,88462.0,88453.0,0.05927]
[1767170853073,0.00943594,88462.0,88453.0,0.07057543]
[1767170853284,0.00943594,88462.0,88457.0,0.01130492]
[1767170853479,0.0002,88465.0,88456.0,0.01130505]
[1767170853684,0.0002,88465.0,88455.0,0.01130518]
[1767170853685,0.0002,88465.0,88462.0,0.01130428]
[1767170853886,0.0002,88465.0,88463.0,0.05927]
[1767170854334,0.0002,88465.0,88460.0,0.12709683]
[1767170854544,0.0002,88465.0,88460.0,0.05927]
[1767170854941,0.0002401,88465.0,88460.0,0.07057454]
[1767170855154,0.0002401,88465.0,88460.0,0.05927]
[1767170855739,0.0002401,88465.0,88460.0,0.07057454]
[1767170855943,1e-07,88465.0,88460.0,0.05927]
[1767170858077,1e-07,88465.0,88460.0,0.07057454]
[1767170859383,1e-07,88465.0,88461.0,0.01130441]
[1767170859880,1e-07,88465.0,88463.0,0.05927]
[1767170860046,0.0001133,88469.0,88466.0,0.01011092]
[1767170860253,3.3e-06,88469.0,88467.0,0.05927]
[1767170860464,3.3e-06,88469.0,88466.0,0.00035]
[1767170860670,3.3e-06,88469.0,88466.0,0.05962]
[1767170861103,0.0001133,88476.0,88466.0,0.05856733]
[1767170861313,0.0001133,88476.0,88467.0,0.05927]
[1767170862520,0.0001133,88476.0,88467.0,0.058721]
[1767170865627,0.0001133,88476.0,88462.0,0.07059]
[1767170865821,0.01130275,88474.0,88462.0,0.01077]
[1767170866050,0.0618,88473.0,88462.0,0.01077]
[1767170866253,0.0618,88473.0,88460.0,0.01130454]
[1767170866476,0.00046823,88476.0,88461.0,0.01130441]
[1767170866759,0.00046823,88476.0,88463.0,0.01130416]
[1767170866933,0.00046823,88476.0,88462.0,0.01130428]
[1767170867116,0.00046823,88476.0,88463.0,0.01130416]
[1767170868963,0.00046823,88476.0,88462.0,0.01130428]
[1767170869972,0.00046823,88476.0,88461.0,0.12321615]
[1767170870156,0.00046823,88476.0,88462.0,0.01130428]
[1767170870660,0.00046823,88476.0,88462.0,0.06669428]
[1767170871284,0.00046823,88476.0,88462.0,0.05539]
[1767170871493,0.00046823,88476.0,88462.0,0.06669428]
[1767170871685,0.00046823,88476.0,88462.0,0.05539]
[1767170871886,0.00046823,88476.0,88462.0,0.06669428]
[1767170872087,0.00046823,88476.0,88463.0,0.01130416]
[1767170873916,0.00046823,88476.0,88464.0,0.01130403]
[1767170874087,0.00046823,88476.0,88466.0,0.05539]
[1767170874295,0.00046823,88476.0,88466.0,0.06669377]
[1767170875944,0.00046823,88476.0,88466.0,0.05539]
[1767170876845,0.00046823,88476.0,88460.0,0.06669454]
[1767170877170,0.00046823,88476.0,88462.0,0.01130428]
[1767170877704,0.00046823,88476.0,88463.0,0.01130416]
[1767170878138,0.00046823,88476.0,88464.0,0.01130403]
[1767170878535,0.00046823,88476.0,88466.0,0.01130377]
[1767170879192,0.00046823,88476.0,88465.0,0.0666939]
[1767170879733,0.00046823,88476.0,88465.0,0.06550134]
[1767170880154,0.00046823,88476.0,88466.0,0.01130377]
[1767170880352,0.00046823,88476.0,88467.0,0.12321154]
[1767170880554,2.3e-07,88476.0,88468.0,0.01130352]
[1767170880939,0.0002,88482.0,88471.0,0.05539]
[1767170881062,0.0002,88482.0,88474.0,0.0577]
[1767170882097,0.000468,88474.0,88463.0,0.07239031]
[1767170882299,0.06978186,88481.0,88463.0,0.01130416]
[1767170882496,0.06978186,88481.0,88464.0,0.01130403]
[1767170882706,0.05848,88480.0,88462.0,0.01130428]
[1767170882905,0.05848,88480.0,88464.0,0.01130403]
[1767170885590,0.05848,88480.0,88465.0,0.0113039]
[1767170885775,0.0002,88482.0,88470.0,0.26280485]
[1767170885969,0.01132,88480.0,88470.0,0.32050485]
[1767170886756,0.01132,88480.0,88470.0,0.26280485]
[1767170886954,0.01132,88480.0,88471.0,0.0577]
[1767170887380,0.01132,88480.0,88471.0,0.06900313]
[1767170887741,0.00026415,88482.0,88471.0,0.06900313]
[1767170887939,0.01132,88486.0,88474.0,0.0577]
[1767170889465,0.01132,88486.0,88474.0,0.06900275]
[1767170889992,0.01130058,88491.0,88474.0,0.06900275]
[1767170890253,0.02262071,88490.0,88474.0,0.0577]
[1767170890955,0.01130058,88491.0,88474.0,0.0577]
[1767170891135,0.01132,88490.0,88474.0,0.06900275]
[1767170891330,0.01132,88490.0,88475.0,0.01130262]
[1767170891539,0.01132,88490.0,88476.0,0.0577]
[1767170891748,0.01132,88492.0,88481.0,0.0577]
[1767170893337,0.000549,88481.0,88480.0,0.01132]
[1767170893542,0.000549,88481.0,88480.0,0.01138415]
[1767170893737,0.01130083,88489.0,88480.0,0.01138415]
[1767170894271,0.01130083,88489.0,88480.0,0.01083515]
[1767170894473,0.06978071,88490.0,88480.0,0.01083515]
[1767170894893,0.01130083,88489.0,88480.0,0.01083515]
[1767170895499,0.06978071,88490.0,88480.0,0.01083515]
[1767170896078,0.01130045,88492.0,88480.0,0.01083515]
[1767170896250,0.01130032,88493.0,88480.0,0.01083515]
[1767170896546,0.01130045,88492.0,88480.0,0.01083515]
[1767170897717,0.01130058,88491.0,88480.0,0.01083515]
[1767170897920,0.05578,88489.0,88480.0,0.01083515]
[1767170898335,0.06708083,88489.0,88480.0,0.01083515]
[1767170898541,0.05578,88489.0,88480.0,0.01083515]
[1767170898857,0.05578,88489.0,88469.0,0.05651651]
[1767170898858,0.01130109,88487.0,88465.0,0.11760529]
[1767170899078,0.05578,88481.0,88468.0,0.01356806]
[1767170899441,0.05578,88481.0,88468.0,0.02487158]
[1767170899850,0.05578,88481.0,88468.0,0.01356806]
[1767170900300,0.05578,88481.0,88468.0,0.02487158]
[1767170900942,0.05578,88481.0,88469.0,0.01130339]
[1767170901321,0.05578,88481.0,88470.0,0.01130326]
[1767170901505,0.05578,88481.0,88469.0,0.01130339]
[1767170902704,0.05578,88481.0,88470.0,0.01130326]
[1767170903044,0.07840096,88488.0,88471.0,0.05764]
[1767170903505,0.07840096,88488.0,88471.0,0.06894313]
[1767170903882,0.0671,88488.0,88471.0,0.06894313]
[1767170904066,0.07840096,88488.0,88471.0,0.06894313]
[1767170904395,0.0671,88488.0,88471.0,0.06894313]
[1767170904571,0.0671,88488.0,88472.0,0.01130301]
[1767170904789,0.07840096,88488.0,88471.0,0.06894313]
[1767170904987,0.07840096,88488.0,88471.0,0.05764]
[1767170905394,0.07840096,88488.0,88471.0,0.06894313]
[1767170905763,0.0671,88488.0,88472.0,0.01130301]
[1767170905964,0.0671,88488.0,88471.0,0.06894313]
[1767170906567,0.01130147,88484.0,88471.0,0.05764]
[1767170906770,0.05578,88483.0,88467.0,0.01130364]
[1767170906960,0.05578,88483.0,88468.0,0.01356806]
[1767170907191,0.05578,88483.0,88468.0,0.02487158]
[1767170908756,0.05578,88483.0,88469.0,0.01130339]
[1767170909102,0.05578,88483.0,88468.0,0.02487158]
[1767170909400,0.06780692,88487.0,88467.0,0.06782157]
[1767170909401,0.05578,88481.0,88467.0,0.06108615]
[1767170909610,0.05578,88481.0,88468.0,0.01356806]
[1767170909736,0.06708186,88481.0,88468.0,0.01356806]
[1767170911180,0.06708211,88479.0,88466.0,0.01178823]
[1767170911384,0.05578,88479.0,88466.0,0.01178823]
[1767170913656,0.01132,88481.0,88466.0,0.06942823]
[1767170914056,0.01132,88481.0,88466.0,0.080732]
[1767170914368,0.01132,88481.0,88466.0,0.06942823]
[1767170914578,0.01132,88481.0,88466.0,0.080732]
[1767170915362,0.01132,88481.0,88466.0,0.06942823]
[1767170915943,0.0671,88481.0,88466.0,0.06942823]
[1767170916382,0.0671,88481.0,88466.0,0.080732]
[1767170919417,0.0671,88481.0,88467.0,0.05764]
[1767170920563,0.26279719,88480.0,88467.0,0.05764]
[1767170929842,0.01132,88481.0,88467.0,0.05764]
[1767170930070,0.26279719,88480.0,88467.0,0.05764]
[1767170942533,0.26275462,88480.0,88467.0,0.05764]
[1767170942734,0.01130135,88485.0,88471.0,0.05806]
[1767170943031,0.01132,88484.0,88480.0,0.001099]
[1767170943221,0.01132,88483.0,88480.0,0.00046443]
[1767170943440,0.01130096,88488.0,88476.0,0.05806]
[1767170943636,0.01132,88487.0,88476.0,0.05806]
[1767170943877,0.06780739,88486.0,88476.0,0.05806]
[1767170944057,0.01130135,88485.0,88476.0,0.05806]
[1767170944255,0.01130135,88485.0,88471.0,0.05806]
[1767170944457,0.0113016,88483.0,88471.0,0.05806]
[1767170944683,0.01130147,88484.0,88471.0,0.05806]
[1767170945922,0.01130135,88485.0,88471.0,0.05806]
[1767170946084,0.01130147,88484.0,88471.0,0.05806]
[1767170946484,0.01130135,88485.0,88471.0,0.05806]
[1767170947327,0.01130147,88484.0,88471.0,0.05806]
[1767170947690,0.01130135,88485.0,88471.0,0.05806]
[1767170947893,0.01130147,88484.0,88471.0,0.05806]
[1767170948539,0.01130135,88485.0,88471.0,0.05806]
[1767170949298,0.06575122,88486.0,88471.0,0.05806]
[1767170949503,0.01130135,88485.0,88471.0,0.05806]
[1767170949900,0.01132,88484.0,88471.0,0.05806]
[1767170952962,0.01132,88483.0,88471.0,0.05806]
[1767170954324,0.01132,88483.0,88471.0,0.06936313]
[1767170954507,0.01132,88483.0,88473.0,0.05806]
[1767170960975,0.01132,88483.0,88468.0,0.05416]
[1767170961187,0.01132,88483.0,88470.0,0.26279719]
[1767170961960,0.01132,88483.0,88470.0,0.31695719]
[1767170963552,0.01132,88483.0,88471.0,0.05416]
[1767170967333,0.01132,88483.0,88471.0,0.06546313]
[1767170967766,0.01130096,88488.0,88471.0,0.06546313]
[1767170967952,0.01132,88484.0,88471.0,0.06546313]
[1767170968521,0.01132,88484.0,88472.0,0.06546301]
[1767170969088,0.01132,88484.0,88472.0,0.05416]
[1767170969287,0.01141413,88489.0,88472.0,0.05416]
[1767170969578,0.01132,88485.0,88472.0,0.06546301]
[1767170970010,0.01132,88485.0,88472.0,0.05416]
[1767170970211,0.01132,88485.0,88472.0,0.06546301]
[1767170970690,0.01132,88485.0,88473.0,0.05416]
[1767170970892,0.01132,88485.0,88473.0,0.06546288]
[1767170971393,0.0007323,88484.0,88478.0,0.01130224]
[1767170971594,0.0114333,88489.0,88479.0,0.06546211]
[1767170971799,0.0001133,88489.0,88484.0,0.054709]
[1767170972302,0.0001133,88489.0,88484.0,0.05416]
[1767170977468,0.02154179,88498.0,88486.0,0.05416]
[1767170977675,0.06341,88502.0,88488.0,0.26230475]
[1767170977803,0.06341,88502.0,88490.0,0.26279719]
[1767170978398,0.06341,88502.0,88490.0,0.26268419]
[1767170978610,0.01132,88502.0,88490.0,0.31684419]
[1767170980915,0.0001133,88503.0,88490.0,0.31684419]
[1767170981124,0.01132,88501.0,88490.0,0.31684419]
[1767170981433,0.01132,88501.0,88491.0,0.05416]
[1767170981840,0.01132,88501.0,88491.0,0.06546058]
[1767170982035,0.01132,88501.0,88491.0,0.05416]
[1767170982235,0.01132,88501.0,88491.0,0.06546058]
[1767170982639,0.0001133,88503.0,88493.0,0.05650158]
[1767170982842,0.0001133,88503.0,88494.0,0.0654602]
[1767170983083,0.0001133,88503.0,88495.0,0.06546007]
[1767170983820,0.0001133,88503.0,88496.0,0.01129994]
[1767170983959,0.0001133,88503.0,88495.0,0.06546007]
[1767170984176,0.0114333,88503.0,88495.0,0.06546007]
[1767170985615,0.0108843,88503.0,88497.0,0.06545981]
[1767170986059,0.01132,88509.0,88498.0,0.06545969]
[1767170986419,0.01132,88509.0,88498.0,0.05416]
[1767170986798,0.01132,88509.0,88498.0,0.06545969]
[1767170987200,0.01132,88509.0,88499.0,0.01129956]
[1767170987388,0.01132,88509.0,88499.0,0.05357]
[1767170988028,0.01132,88509.0,88488.0,0.01132]
[1767170988029,0.06737969,88498.0,88488.0,0.01132]
[1767170988339,0.06737969,88498.0,88488.0,0.01077]
[1767170988900,0.05608,88498.0,88488.0,0.01077]
[1767170989598,0.28525074,88500.0,88483.0,0.05357]
[1767170989754,0.27395131,88500.0,88483.0,0.0648716]
[1767170990396,0.01129956,88499.0,88483.0,0.05357]
[1767170990531,0.05608,88499.0,88483.0,0.05357]
[1767170991188,0.05608,88499.0,88483.0,0.0648716]
[1767170991393,0.05608,88499.0,88483.0,0.05357]
[1767170991893,0.06737956,88499.0,88483.0,0.05357]
[1767170992096,0.05608,88499.0,88483.0,0.05357]
[1767170992875,0.05608,88499.0,88483.0,0.0648716]
[1767170993294,0.06737956,88499.0,88483.0,0.05357]
[1767170994237,0.05608,88499.0,88483.0,0.05357]
[1767170994782,0.05608,88499.0,88483.0,0.0648716]
[1767170995280,0.05608,88499.0,88482.0,0.02262173]
[1767170995281,0.05608,88494.0,88486.0,3e-07]
[1767170999343,0.0673802,88494.0,88486.0,3e-07]
[1767170999551,0.05608,88494.0,88486.0,3e-07]
[1767171003341,0.01129981,88497.0,88486.0,3e-07]
[1767171003544,0.06516956,88499.0,88486.0,3e-07]
[1767171003751,0.01129956,88499.0,88486.0,3e-07]
[1767171003956,0.01129956,88499.0,88486.0,0.0553403]
[1767171005379,0.01129969,88498.0,88486.0,0.0553403]
[1767171006029,0.01129994,88496.0,88486.0,0.0553403]
[1767171006195,0.01129981,88497.0,88486.0,0.0553403]
[1767171010265,0.01129969,88498.0,88486.0,0.0553403]
[1767171011595,0.01129981,88497.0,88486.0,0.0553403]
[1767171011939,0.01129969,88498.0,88486.0,0.0553403]
[1767171012144,0.02261943,88500.0,88486.0,0.0553403]
[1767171012366,0.01129956,88499.0,88486.0,0.0553403]
[1767171013242,0.01129969,88498.0,88486.0,0.0553403]
[1767171013450,0.02261969,88498.0,88486.0,0.0553403]
[1767171013700,0.01132,88498.0,88486.0,0.0553403]
[1767171015701,0.02261969,88498.0,88486.0,0.0553403]
[1767171017837,0.01129981,88497.0,88486.0,0.0553403]
[1767171018585,0.02261969,88498.0,88486.0,0.0553403]
[1767171019751,0.0791184,88498.0,88486.0,0.0553403]
[1767171019900,0.02261969,88498.0,88486.0,0.0553403]
[1767171020509,0.01129994,88496.0,88486.0,0.0553403]
[1767171020751,0.01129994,88496.0,88479.0,0.0001133]
[1767171020752,0.05453,88483.0,88479.0,0.0001133]
[1767171020956,0.0658316,88483.0,88479.0,0.0001133]
[1767171021153,0.0658316,88483.0,88477.0,0.01127713]
[1767171021154,0.05453,88483.0,88477.0,0.01127713]
[1767171021416,0.01130122,88486.0,88477.0,0.01127713]
[1767171021708,0.01130109,88487.0,88477.0,0.01127713]
[1767171022036,0.01130122,88486.0,88477.0,0.01127713]
[1767171022246,0.01130135,88485.0,88477.0,0.01127713]
[1767171022401,0.2739324,88487.0,88477.0,0.01127713]
[1767171022568,0.01130122,88486.0,88477.0,0.01127713]
[1767171022768,0.2739324,88487.0,88477.0,0.01127713]
[1767171023369,0.01130122,88486.0,88477.0,0.01127713]
[1767171023717,0.01130147,88484.0,88472.0,0.0001133]
[1767171024043,4.007e-05,88484.0,88472.0,0.0001133]
[1767171031545,0.01134154,88484.0,88472.0,0.0001133]
[1767171032191,0.05453,88483.0,88472.0,0.0001133]
[1767171032814,0.0658316,88483.0,88472.0,0.0001133]
[1767171033402,0.05453,88483.0,88472.0,0.0001133]
[1767171035438,4.007e-05,88484.0,88472.0,0.0001133]
[1767171042569,0.26279029,88482.0,88472.0,0.0001133]
[1767171045073,4.007e-05,88484.0,88472.0,0.0001133]
[1767171048214,4.007e-05,88484.0,88472.0,0.01141631]
[1767171049212,4.007e-05,88484.0,88472.0,0.0001133]
[1767171049423,4.007e-05,88484.0,88472.0,0.01141631]
[1767171050821,4.007e-05,88484.0,88472.0,0.0001133]
[1767171051021,4.007e-05,88484.0,88472.0,0.01141631]
[1767171051460,4.007e-05,88484.0,88472.0,0.0001133]
[1767171052880,0.26279029,88482.0,88472.0,0.0001133]
[1767171053077,0.26279029,88482.0,88471.0,0.0002]
[1767171053078,0.05122,88473.0,88471.0,3e-07]
[1767171053301,0.0001997,88471.0,88461.0,0.01132]
[1767171053716,0.05122,88473.0,88461.0,0.01132]
[1767171054255,0.05122,88473.0,88466.0,3e-07]
[1767171055268,0.05651802,88468.0,88466.0,3e-07]
[1767171055485,0.05122,88467.0,88466.0,3e-07]
[1767171059766,0.05122,88470.0,88466.0,3e-07]
[1767171060536,0.06252326,88470.0,88466.0,3e-07]
[1767171060763,0.01130326,88470.0,88466.0,3e-07]
[1767171060941,0.01130339,88469.0,88466.0,3e-07]
[1767171061147,0.01130326,88470.0,88466.0,3e-07]
[1767171061342,0.06781925,88471.0,88466.0,3e-07]
[1767171061775,0.01130313,88471.0,88466.0,3e-07]
[1767171062496,0.01130339,88469.0,88466.0,3e-07]
[1767171062626,0.01130326,88470.0,88466.0,3e-07]
[1767171063594,0.06782227,88467.0,88452.0,0.0500314]
[1767171063802,0.26279029,88462.0,88452.0,0.0500314]
[1767171064334,0.01132,88466.0,88452.0,0.0500314]
[1767171066175,0.01132,88466.0,88452.0,0.06133696]
[1767171066375,0.01132,88466.0,88452.0,0.0500314]
[1767171066714,0.01132,88466.0,88452.0,0.06133696]
[1767171067298,0.01132,88466.0,88452.0,0.0500314]
[1767171067500,0.01132,88466.0,88452.0,0.06133696]
[1767171067938,0.01132,88466.0,88452.0,0.0500314]
[1767171070268,0.01132,88466.0,88452.0,0.06133696]
[1767171071465,0.01132,88466.0,88452.0,0.0500314]
[1767171071772,0.01132,88466.0,88452.0,0.06133696]
[1767171071932,0.01132,88466.0,88452.0,0.0500314]
[1767171076204,0.06747,88466.0,88452.0,0.0500314]
[1767171077964,0.06747,88466.0,88452.0,0.06133696]
[1767171078164,0.06747,88466.0,88452.0,0.0500314]
[1767171079874,0.26279029,88462.0,88452.0,0.0500314]
[1767171080072,0.06747,88466.0,88452.0,0.0500314]
[1767171080679,0.01132,88466.0,88452.0,0.0500314]
[1767171082298,0.01132,88466.0,88452.0,0.06133696]
[1767171082504,0.01132,88466.0,88453.0,0.06526543]
[1767171082817,0.01132,88466.0,88453.0,0.05396]
[1767171083026,0.01132,88466.0,88454.0,0.01130531]
[1767171084022,0.01132,88466.0,88455.0,0.01130518]
[1767171084222,0.01132,88466.0,88454.0,0.01130531]
[1767171084463,0.01132,88466.0,88453.0,0.06526543]
[1767171084871,0.01132,88466.0,88453.0,0.05396]
[1767171089242,9.7e-05,88453.0,88451.0,0.06528]
[1767171089864,0.26279029,88461.0,88451.0,0.06528]
[1767171090424,0.26279029,88461.0,88451.0,0.06563493]
[1767171090623,0.0001133,88469.0,88451.0,0.06563493]
[1767171090862,0.02262352,88468.0,88461.0,0.000452]
[1767171091008,0.01132,88468.0,88456.0,0.05396]
[1767171091213,9.7e-05,88456.0,88451.0,0.06563493]
[1767171091392,0.05454,88467.0,88451.0,0.06563493]
[1767171093084,0.05454,88467.0,88451.0,0.07694062]
[1767171093289,0.05454,88467.0,88452.0,0.05396]
[1767171093738,0.01132,88466.0,88452.0,0.05396]
[1767171096248,0.06584364,88467.0,88452.0,0.05396]
[1767171096453,0.01132,88466.0,88452.0,0.05396]
[1767171097731,0.01132,88472.0,88466.0,0.001002]
[1767171098117,0.01132,88472.0,88460.0,0.31675029]
[1767171098321,0.01132,88472.0,88460.0,0.26279029]
[1767171098555,0.01132,88472.0,88461.0,0.05396]
[1767171104867,0.01127756,88472.0,88461.0,0.05396]
[1767171107015,0.01127756,88472.0,88461.0,0.06526441]
[1767171107371,0.01127756,88472.0,88461.0,0.05396]
[1767171112074,9.7e-05,88461.0,88455.0,0.06309518]
[1767171112252,0.05577,88471.0,88455.0,0.06309518]
[1767171112424,0.05577,88471.0,88456.0,0.01130505]
[1767171113002,0.05577,88471.0,88457.0,0.01130492]
[1767171113411,0.01127756,88472.0,88458.0,0.0630948]
[1767171113803,0.01127756,88472.0,88459.0,0.01130467]
[1767171115006,0.01127756,88472.0,88460.0,0.01130454]
[1767171115961,0.01127756,88472.0,88461.0,0.01130441]
[1767171116396,0.01127756,88472.0,88460.0,0.01130454]
[1767171117172,0.01127756,88472.0,88461.0,0.01130441]
[1767171117706,0.01127756,88472.0,88460.0,0.01130454]
[1767171118898,0.01127756,88472.0,88458.0,0.11961846]
[1767171119101,0.01127756,88472.0,88459.0,0.01130467]
[1767171119299,0.01127756,88472.0,88460.0,0.01130454]
[1767171119800,0.01127756,88472.0,88462.0,0.01130428]
[1767171120504,0.0001133,88483.0,88472.0,0.000452]
[1767171120730,0.01132,88482.0,88480.0,0.05179]
[1767171121071,0.0001133,88483.0,88480.0,0.05179]
[1767171121316,3.3e-06,88483.0,88480.0,0.06309198]
[1767171121508,0.01132,88496.0,88486.0,0.05179]
[1767171121826,0.01142638,88496.0,88486.0,0.05179]
[1767171122024,0.01142638,88496.0,88486.0,0.06309122]
[1767171122223,0.00010638,88496.0,88483.0,0.0113016]
[1767171122479,0.00010638,88496.0,88483.0,0.12307962]
[1767171122681,0.00010638,88496.0,88485.0,0.01130135]
[1767171124136,0.00010638,88496.0,88486.0,0.01130122]
[1767171124345,0.00010638,88496.0,88485.0,0.01130135]
[1767171124794,0.00010638,88496.0,88484.0,0.06657147]
[1767171125121,0.00010638,88496.0,88485.0,0.01130135]
[1767171126025,0.00010638,88496.0,88484.0,0.06657147]
[1767171126201,0.00010638,88496.0,88485.0,0.01130135]
[1767171126606,0.00010638,88496.0,88486.0,0.01130122]
[1767171126746,0.00010638,88496.0,88487.0,0.01130109]
[1767171127380,0.00010638,88496.0,88486.0,0.01130122]
[1767171127635,0.00010638,88496.0,88487.0,0.01130109]
[1767171128020,0.00010638,88496.0,88484.0,0.05527]
[1767171128226,0.00010638,88496.0,88485.0,0.01130135]
[1767171129175,0.00010638,88496.0,88485.0,0.06780806]
[1767171129380,0.00010638,88496.0,88485.0,0.01130135]
[1767171129584,0.00010638,88496.0,88486.0,0.01130122]
[1767171130318,0.00010638,88496.0,88484.0,0.06657147]
[1767171130517,0.00010638,88496.0,88484.0,0.05527]
[1767171130904,0.00010638,88496.0,88484.0,0.055173]
[1767171131110,0.00010638,88496.0,88484.0,0.06647447]
[1767171131516,0.00010638,88496.0,88485.0,0.01130135]
[1767171131772,0.00010638,88496.0,88486.0,0.01130122]
[1767171131958,0.00010638,88496.0,88482.0,0.01130173]
[1767171132108,0.00010638,88496.0,88481.0,0.01130186]
[1767171132306,0.00010638,88496.0,88482.0,0.01130173]
[1767171132514,0.00010638,88496.0,88483.0,0.0113016]
[1767171132780,0.00010638,88496.0,88484.0,0.01130147]
[1767171133071,0.00010638,88496.0,88482.0,0.01130173]
[1767171133212,0.00010638,88496.0,88483.0,0.0113016]
[1767171134099,0.00010638,88496.0,88484.0,0.01130147]
[1767171134854,0.00010638,88496.0,88485.0,0.01130135]
[1767171135216,0.00010638,88496.0,88487.0,0.01130109]
[1767171135403,0.00010638,88496.0,88486.0,0.01130122]
[1767171135994,0.00010638,88496.0,88485.0,0.01130135]
[1767171136200,0.00010638,88496.0,88486.0,0.01130122]
[1767171136399,0.00010638,88496.0,88485.0,0.01130135]
[1767171136599,0.00010638,88496.0,88486.0,0.01130122]
[1767171137429,0.00010638,88496.0,88485.0,0.01130135]
[1767171138025,0.00010638,88496.0,88484.0,0.01130147]
[1767171138410,0.00010638,88496.0,88485.0,0.01130135]
[1767171139152,0.00010638,88496.0,88484.0,0.01130147]
[1767171139456,0.00010638,88496.0,88486.0,0.01130122]
[1767171139674,0.00010638,88496.0,88491.0,0.05625]
[1767171139675,3.8e-07,88496.0,88491.0,0.05625]
[1767171140287,3.8e-07,88496.0,88491.0,0.06755058]
[1767171140493,3.8e-07,88496.0,88491.0,0.05625]
[1767171143067,3.8e-07,88496.0,88491.0,0.056144]
[1767171144138,3.8e-07,88496.0,88487.0,0.01132]
[1767171144294,3.8e-07,88496.0,88487.0,0.01077]
[1767171145139,0.05551038,88496.0,88487.0,0.01077]
[1767171146458,0.01130058,88491.0,88473.0,0.0609026]
[1767171146767,0.05551,88485.0,88471.0,0.02262313]
[1767171147267,0.01130083,88489.0,88472.0,0.06766631]
[1767171147486,0.06681071,88490.0,88472.0,0.06766631]
[1767171147643,0.32964807,88490.0,88472.0,0.06766631]
[1767171147846,0.01130083,88489.0,88472.0,0.06766631]
[1767171148032,0.32964807,88490.0,88473.0,0.01130288]
[1767171148408,0.01130083,88489.0,88472.0,0.0563633]
[1767171148614,0.05551,88486.0,88472.0,0.0001133]
[1767171151996,0.05551,88486.0,88472.0,0.01141631]
[1767171152410,0.05551,88486.0,88472.0,0.0001133]
[1767171152612,0.01130147,88484.0,88472.0,0.0001133]
[1767171152838,0.06681173,88482.0,88472.0,0.0001133]
[1767171152993,0.06781073,88482.0,88479.0,3.3e-06]
[1767171153175,0.05551,88481.0,88479.0,3.3e-06]
[1767171153582,0.05551,88480.0,88479.0,3.3e-06]
[1767171161364,0.0668116,88483.0,88479.0,3.3e-06]
[1767171164241,0.01130173,88482.0,88479.0,3.3e-06]
[1767171165678,0.06681173,88482.0,88479.0,3.3e-06]
[1767171166140,0.05551,88482.0,88479.0,3.3e-06]
[1767171166517,0.06681173,88482.0,88479.0,3.3e-06]
[1767171168094,0.06681173,88482.0,88472.0,0.0001133]
[1767171168301,0.01130198,88480.0,88472.0,0.0001133]
[1767171168498,0.01130198,88480.0,88472.0,7.018e-05]
[1767171169135,0.01130186,88481.0,88472.0,7.018e-05]
[1767171169465,0.27431965,88482.0,88472.0,7.018e-05]
[1767171169814,0.01130198,88480.0,88472.0,7.018e-05]
[1767171170147,0.26301792,88482.0,88472.0,7.018e-05]
[1767171174684,0.27431965,88482.0,88472.0,7.018e-05]
[1767171175524,0.26301792,88482.0,88472.0,7.018e-05]
[1767171176113,0.01130186,88481.0,88472.0,7.018e-05]
[1767171176529,0.27431965,88482.0,88472.0,7.018e-05]
[1767171176690,0.01130186,88481.0,88472.0,7.018e-05]
[1767171177230,0.27431965,88482.0,88472.0,7.018e-05]
[1767171178228,0.01130186,88481.0,88472.0,7.018e-05]
[1767171179024,0.27431965,88482.0,88472.0,7.018e-05]
[1767171179385,0.01130186,88481.0,88472.0,7.018e-05]
[1767171180691,0.27431965,88482.0,88472.0,7.018e-05]
[1767171181055,0.0002,88482.0,88472.0,7.018e-05]
[1767171181257,0.26301792,88482.0,88472.0,7.018e-05]
[1767171181441,0.0002,88482.0,88472.0,0.05402018]
[1767171181641,0.26301792,88482.0,88472.0,0.05402018]
[1767171182525,0.01132,88481.0,88472.0,0.05402018]